bitfinex/quotes_SOLUSD_20240824
["timestamp","ask_amount","ask_price","bid_price","bid_amount"]
[1724469925123,3.96462691,153.51,153.44,42.32183361]
[1724469925286,3.96462415,153.51,153.44,42.32183361]
[1724469925608,3.96462415,153.5,153.44,42.32183361]
[1724469925785,3.96462415,153.49,153.44,42.32183361]
[1724469925989,26.79468092,153.54,153.44,42.32183361]
[1724469926203,49.21565888,153.53,153.44,42.32183361]
[1724469926405,3.96467888,153.52,153.44,42.32183361]
[1724469926603,49.21565888,153.51,153.44,16.632]
[1724469926818,48.96467888,153.5,153.44,16.632]
[1724469927007,0.25098,153.51,153.44,16.632]
[1724469927291,4.21577131,153.5,153.44,16.632]
[1724469927533,45.0,153.49,153.44,16.632]
[1724469927707,0.25098,153.52,153.44,16.632]
[1724469927999,3.9648331,153.51,153.44,16.632]
[1724469928217,49.2158131,153.5,153.44,16.632]
[1724469928519,45.25098,153.5,153.44,16.632]
[1724469935217,45.0,153.49,153.44,16.632]
[1724469935420,0.25098,153.48,153.44,16.632]
[1724469935609,0.25098,153.5,153.44,16.632]
[1724469939614,3.9642366,153.49,153.44,16.632]
[1724469939825,45.25098,153.48,153.44,16.632]
[1724469940132,45.0,153.48,153.44,16.632]
[1724469941624,6.79320956,153.51,153.44,16.632]
[1724469941814,3.96436921,153.5,153.44,16.632]
[1724469942018,6.79320956,153.51,153.44,16.632]
[1724469942217,3.96437019,153.5,153.44,16.632]
[1724469942522,6.79320956,153.51,153.44,16.632]
[1724469942523,3.96437019,153.49,153.44,16.632]
[1724469942733,6.79320956,153.51,153.44,16.632]
[1724469942915,49.08986458,153.5,153.44,42.32183361]
[1724469943234,3.96432692,153.49,153.44,42.32183361]
[1724469943405,45.12549,153.5,153.44,42.32183361]
[1724469943729,3.96433734,153.49,153.44,42.32183361]
[1724469943932,45.12549,153.5,153.44,42.32183361]
[1724469944229,3.96448239,153.49,153.44,42.32183361]
[1724469944437,45.12549,153.5,153.44,42.32183361]
[1724469946209,6.79320956,153.51,153.45,6.6295]
[1724469946404,3.96391284,153.5,153.45,6.6295]
[1724469946610,6.79266317,153.53,153.45,6.6295]
[1724469946826,3.96393569,153.52,153.45,6.6295]
[1724469947009,3.96393569,153.51,153.45,6.6295]
[1724469947212,3.96393569,153.5,153.45,6.6295]
[1724469947418,6.79266317,153.53,153.45,6.6295]
[1724469947742,49.08949137,153.52,153.45,6.6295]
[1724469947915,4.08949137,153.51,153.45,6.6295]
[1724469948115,48.96400137,153.5,153.45,6.6295]
[1724469948421,45.0,153.49,153.45,6.6295]
[1724469948620,0.12549,153.51,153.45,6.6295]
[1724469948843,3.96400462,153.5,153.45,6.6295]
[1724469949132,45.0,153.49,153.45,6.6295]
[1724469949351,0.12549,153.51,153.45,6.6295]
[1724469949531,3.96387486,153.5,153.45,6.6295]
[1724469949741,48.96387486,153.49,153.45,6.6295]
[1724469949919,0.12549,153.51,153.45,6.6295]
[1724469950123,3.96397459,153.5,153.45,6.6295]
[1724469950326,48.96397459,153.49,153.45,6.6295]
[1724469950517,0.12549,153.51,153.45,6.6295]
[1724469950718,3.9639755,153.5,153.45,6.6295]
[1724469950917,48.9639755,153.49,153.45,6.6295]
[1724469951137,0.12549,153.51,153.45,6.6295]
[1724469951340,3.96396835,153.5,153.45,6.6295]
[1724469951512,48.96396835,153.49,153.45,6.6295]
[1724469951711,0.12549,153.51,153.45,6.6295]
[1724469951911,3.96399522,153.5,153.45,6.6295]
[1724469952163,0.12549,153.51,153.45,6.6295]
[1724469952164,45.0,153.49,153.45,6.6295]
[1724469952329,0.12549,153.51,153.45,6.6295]
[1724469952619,3.96395908,153.5,153.45,6.6295]
[1724469952833,48.96395908,153.49,153.45,6.6295]
[1724469953034,45.0,153.49,153.45,6.6295]
[1724469954318,3.96390297,153.48,153.45,6.6295]
[1724469954521,45.0,153.49,153.45,6.6295]
[1724469954819,3.96390343,153.48,153.45,6.6295]
[1724469955049,45.0,153.49,153.45,6.6295]
[1724469955239,3.96404905,153.48,153.45,6.6295]
[1724469955435,45.0,153.49,153.45,6.6295]
[1724469955651,3.96405098,153.48,153.45,6.6295]
[1724469955842,45.0,153.49,153.45,6.6295]
[1724469956138,3.96408084,153.48,153.45,6.6295]
[1724469956336,6.79266317,153.53,153.46,26.99286243]
[1724469956553,3.96426604,153.52,153.47,1.30294058]
[1724469956858,3.96426604,153.51,153.48,16.2895]
[1724469957021,26.79155925,153.55,153.48,16.2895]
[1724469957022,3.96426604,153.5,153.48,16.2895]
[1724469957222,26.79155925,153.55,153.48,16.2895]
[1724469957436,3.96482624,153.54,153.48,16.2895]
[1724469957742,49.21580624,153.53,153.48,16.2895]
[1724469958049,3.96482624,153.52,153.48,16.2895]
[1724469958231,3.96482624,153.51,153.48,16.2895]
[1724469958422,3.96482624,153.51,153.48,41.97933361]
[1724469958627,15.4087,153.59,153.48,41.97933361]
[1724469958836,6.7908138,153.57,153.48,41.97933361]
[1724469959230,6.7908138,153.57,153.49,6.5994]
[1724469960740,45.25098,153.56,153.49,6.5994]
[1724469970358,6.7908138,153.57,153.5,25.68983361]
[1724469970533,6.7908138,153.57,153.51,1.30260476]
[1724469971237,6.7908138,153.57,153.5,25.68983361]
[1724469971454,45.0,153.56,153.5,25.68983361]
[1724469971861,45.0,153.56,153.51,16.0457]
[1724469972038,45.0,153.56,153.52,1.30259128]
[1724469972567,45.0,153.56,153.51,16.0457]
[1724469979173,0.12549,153.55,153.51,16.0457]
[1724469979342,0.25098,153.55,153.51,16.0457]
[1724469981456,30.0,153.52,153.51,16.0457]
[1724469981663,75.0,153.52,153.51,16.0457]
[1724469982370,45.0,153.52,153.51,16.0457]
[1724469983091,0.25098,153.55,153.51,16.0457]
[1724469983272,6.79174631,153.56,153.51,16.0457]
[1724469984657,45.12549,153.55,153.51,16.0457]
[1724469985061,45.0,153.55,153.51,16.0457]
[1724469987676,6.5104,153.61,153.51,16.0457]
[1724469987851,71.76138,153.6,153.51,16.0457]
[1724469988151,78.54343024,153.6,153.51,16.0457]
[1724469989971,72.03303024,153.6,153.52,1.30253469]
[1724469990159,72.03303024,153.6,153.51,16.0457]
[1724469992947,72.03303024,153.6,153.52,6.1984]
[1724469993667,6.5117,153.57,153.52,6.1984]
[1724469994015,45.25098,153.56,153.52,6.1984]
[1724469994489,0.25098,153.56,153.52,6.1984]
[1724469998274,7.03200112,153.56,153.52,6.1984]
[1724469998448,45.0,153.55,153.52,6.1984]
[1724470001562,26.5104,153.6,153.52,6.1984]
[1724470001893,45.25098,153.59,153.52,6.1984]
[1724470002077,20.0,153.58,153.52,6.1984]
[1724470002253,45.12549,153.57,153.52,6.1984]
[1724470006084,0.12549,153.56,153.52,6.1984]
[1724470019794,6.63769,153.56,153.51,16.0457]
[1724470020106,45.12549,153.55,153.48,6.6498]
[1724470020409,20.12549,153.54,153.48,6.6498]
[1724470020583,45.12549,153.53,153.48,6.6498]
[1724470020992,0.12549,153.52,153.48,6.6498]
[1724470038324,26.63939,153.52,153.48,6.6498]
[1724470038495,51.91250566,153.51,153.48,6.6498]
[1724470038696,0.12549,153.5,153.48,6.6498]
[1724470047423,0.12549,153.5,153.45,16.1336]
[1724470050501,6.78714188,153.49,153.45,16.1336]
[1724470050806,45.25098,153.48,153.45,16.1336]
[1724470054122,45.0,153.48,153.45,16.1336]
[1724470058038,6.78714188,153.49,153.45,16.1336]
[1724470066334,6.5126,153.55,153.46,25.68983361]
[1724470066527,6.80007545,153.53,153.46,25.68983361]
[1724470066831,45.25098,153.52,153.46,25.68983361]
[1724470067014,45.0,153.52,153.46,25.68983361]
[1724470067214,0.25098,153.51,153.46,25.68983361]
[1724470067423,21.4313,153.61,153.5,25.68983361]
[1724470067609,6.5112,153.59,153.5,26.99252136]
[1724470067810,6.5105,153.6,153.51,15.1494]
[1724470069540,6.79361193,153.59,153.51,15.1494]
[1724470069838,45.0,153.58,153.51,15.1494]
[1724470070012,0.25098,153.57,153.51,15.1494]
[1724470076962,0.25098,153.57,153.52,6.5017]
[1724470081355,0.12549,153.57,153.52,6.5017]
[1724470082529,0.12549,153.57,153.52,32.19153361]
[1724470082744,0.12549,153.57,153.53,1.30252197]
[1724470082919,45.0,153.58,153.53,1.30252197]
[1724470084430,45.0,153.58,153.52,32.19153361]
[1724470085843,45.0,153.58,153.53,1.30248268]
[1724470086549,45.0,153.58,153.47,1.62109816]
[1724470086550,32.92813431,153.67,153.55,6.5281]
[1724470086751,6.5094,153.63,153.55,6.5281]
[1724470086940,20.0,153.62,153.55,6.5281]
[1724470087743,45.0,153.61,153.55,6.5281]
[1724470098049,0.25098,153.6,153.55,6.5281]
[1724470105773,7.04468283,153.6,153.55,6.5281]
[1724470106072,45.0,153.59,153.55,6.5281]
[1724470106302,0.25098,153.58,153.55,6.5281]
[1724470109984,0.25098,153.58,153.55,6.5281]
[1724470111449,0.12549,153.58,153.55,6.5281]
[1724470113985,45.0,153.59,153.55,6.5281]
[1724470114154,45.0,153.59,153.55,7.8304942]
[1724470114357,20.0,153.62,153.55,7.8304942]
[1724470114571,6.5092,153.63,153.55,7.8304942]
[1724470114877,6.79606759,153.62,153.55,7.8304942]
[1724470115657,45.25098,153.61,153.55,7.8304942]
[1724470117766,45.25098,153.61,153.56,16.265]
[1724470118582,45.12549,153.61,153.57,1.30222814]
[1724470122474,45.12549,153.61,153.56,16.265]
[1724470124490,0.12549,153.6,153.56,16.265]
[1724470124667,0.25098,153.61,153.56,16.265]
[1724470133180,51.79521348,153.62,153.56,16.265]
[1724470133181,6.79521348,153.62,153.56,16.265]
[1724470133504,47.53603361,153.69,153.56,16.265]
[1724470133700,6.79170408,153.65,153.56,16.265]
[1724470133875,20.0,153.64,153.56,16.265]
[1724470134075,20.0,153.68,153.56,16.265]
[1724470134408,6.5083,153.65,153.56,16.265]
[1724470134706,65.25098,153.64,153.56,16.265]
[1724470141615,71.75968,153.64,153.56,16.265]
[1724470145494,65.25098,153.64,153.56,16.265]
[1724470145702,6.5096,153.62,153.56,16.265]
[1724470146022,45.25098,153.61,153.56,16.265]
[1724470147002,0.25098,153.61,153.56,16.265]
[1724470168020,0.25098,153.61,153.56,17.5672161]
[1724470172410,0.25098,153.61,153.56,16.265]
[1724470174606,45.0,153.62,153.56,16.265]
[1724470175011,45.0,153.63,153.56,16.265]
[1724470177509,45.0,153.63,153.57,32.34683361]
[1724470177744,6.5075,153.67,153.58,17.76658894]
[1724470177933,6.5075,153.67,153.6,25.68983361]
[1724470178162,13.31467192,153.67,153.61,7.95886778]
[1724470178646,6.80717192,153.67,153.62,16.4646]
[1724470180035,0.12549,153.66,153.62,16.4646]
[1724470180746,45.25098,153.67,153.62,16.4646]
[1724470182639,20.0,153.68,153.62,16.4646]
[1724470183812,45.0,153.67,153.62,17.76624571]
[1724470184638,45.0,153.67,153.62,16.4646]
[1724470194143,0.12549,153.66,153.62,16.4646]
[1724470194536,0.25098,153.66,153.62,16.4646]
[1724470194735,0.12549,153.66,153.62,16.4646]
[1724470198736,0.25098,153.66,153.62,16.4646]
[1724470204746,0.12549,153.66,153.62,16.4646]
[1724470213764,45.0,153.67,153.62,17.766397]
[1724470214071,45.0,153.67,153.62,16.4646]
[1724470220367,45.0,153.67,153.62,17.76635519]
[1724470221543,6.5062,153.7,153.62,17.76635519]
[1724470221750,25.68983361,153.74,153.63,23.0701]
[1724470221751,6.506,153.71,153.63,23.0701]
[1724470221944,6.506,153.71,153.64,1.30150934]
[1724470222968,20.0,153.7,153.64,1.30150934]
[1724470223156,0.12549,153.69,153.64,1.30150934]
[1724470223365,45.12549,153.69,153.64,1.30150934]
[1724470224660,45.0,153.69,153.64,1.30150934]
[1724470225277,20.0,153.7,153.67,6.6133]
[1724470225482,20.0,153.71,153.67,6.6133]
[1724470244613,25.68983361,153.7,153.67,6.6133]
[1724470246399,20.0,153.71,153.67,6.6133]
[1724470254995,26.5057,153.71,153.67,6.6133]
[1724470256599,20.0,153.71,153.67,6.6133]
[1724470268699,26.5057,153.71,153.67,6.6133]
[1724470270696,26.5057,153.71,153.66,16.4568]
[1724470270697,70.68983361,153.7,153.66,16.4568]
[1724470271113,77.49526132,153.7,153.66,16.4568]
[1724470271417,20.0,153.69,153.63,6.1485]
[1724470272311,26.5069,153.69,153.63,6.1485]
[1724470272993,20.0,153.69,153.63,6.1485]
[1724470274004,30.0,153.65,153.63,6.1485]
[1724470274223,20.0,153.69,153.63,6.1485]
[1724470279508,45.0,153.7,153.63,6.1485]
[1724470285536,6.5066,153.69,153.63,6.1485]
[1724470286533,51.5062,153.7,153.63,6.1485]
[1724470289217,6.63209,153.69,153.63,6.1485]
[1724470289621,45.0,153.68,153.63,6.1485]
[1724470291721,6.63289,153.67,153.63,6.1485]
[1724470292243,45.0,153.66,153.63,6.1485]
[1724470292840,45.12549,153.67,153.63,6.1485]
[1724470293432,45.0,153.67,153.63,6.1485]
[1724470297323,51.5075,153.67,153.62,15.5271]
[1724470299759,45.0,153.67,153.62,13.77496957]
[1724470305063,45.0,153.68,153.62,13.77496957]
[1724470311165,51.507,153.68,153.62,13.77496957]
[1724470311772,6.75838,153.67,153.62,13.77496957]
[1724470311975,45.0,153.66,153.62,13.77496957]
[1724470314253,45.25098,153.67,153.62,13.77496957]
[1724470315266,45.0,153.67,153.63,1.30176754]
[1724470315451,6.8052424,153.7,153.63,7.3819202]
[1724470315774,20.0,153.69,153.63,7.3819202]
[1724470316074,20.0,153.69,153.63,6.081]
[1724470320148,6.8052424,153.7,153.64,1.30148843]
[1724470320348,6.5057,153.71,153.64,1.30148843]
[1724470320607,65.12549,153.7,153.64,1.30148843]
[1724470321176,65.0,153.7,153.64,16.6421]
[1724470321482,20.0,153.7,153.64,16.6421]
[1724470322268,51.63209,153.69,153.64,16.6421]
[1724470322979,45.12549,153.69,153.64,16.6421]
[1724470323195,0.12549,153.68,153.64,16.6421]
[1724470323369,45.12549,153.68,153.64,16.6421]
[1724470323570,0.12549,153.67,153.64,16.6421]
[1724470324078,30.0,153.65,153.64,16.6421]
[1724470324575,0.25098,153.68,153.64,16.6421]
[1724470324873,51.75798,153.68,153.64,16.6421]
[1724470325784,45.25098,153.68,153.64,16.6421]
[1724470326081,20.0,153.69,153.64,16.6421]
[1724470326284,6.5065,153.7,153.64,16.6421]
[1724470326455,20.0,153.69,153.64,16.6421]
[1724470327376,45.0,153.68,153.64,16.6421]
[1724470331182,26.63289,153.67,153.64,16.6421]
[1724470331389,45.0,153.66,153.58,22.6892]
[1724470332261,0.12549,153.65,153.58,22.6892]
[1724470333285,6.63379,153.65,153.58,22.6892]
[1724470333782,0.12549,153.65,153.58,22.6892]
[1724470344982,0.12549,153.65,153.59,25.68983361]
[1724470345170,45.0,153.66,153.61,16.2888]
[1724470346884,45.0,153.66,153.62,1.3017816]
[1724470347600,45.0,153.66,153.61,16.2888]
[1724470347801,45.0,153.66,153.62,1.30175378]
[1724470348004,45.0,153.67,153.62,32.17623361]
[1724470348207,6.5064,153.7,153.62,32.17623361]
[1724470348524,6.75758,153.69,153.62,32.17623361]
[1724470348685,45.0,153.68,153.62,32.17623361]
[1724470349514,45.0,153.68,153.63,1.30159549]
[1724470350089,45.0,153.68,153.62,32.17623361]
[1724470350810,0.25098,153.69,153.62,32.17623361]
[1724470350982,0.12549,153.69,153.62,32.17623361]
[1724470351181,20.0,153.69,153.62,32.17623361]
[1724470353005,26.5066,153.69,153.62,6.4864]
[1724470353187,45.0,153.68,153.62,6.4864]
[1724470356221,45.0,153.69,153.62,6.4864]
[1724470359217,8.2006745,153.76,153.61,16.2888]
[1724470359218,0.4,153.78,153.68,15.055]
[1724470359385,0.4,153.78,153.68,16.35619682]
[1724470359585,6.80321449,153.77,153.69,6.5832]
[1724470359895,6.9032,153.78,153.7,1.30102534]
[1724470361119,6.62869,153.77,153.7,1.30102534]
[1724470362621,45.0,153.76,153.7,1.30102534]
[1724470362820,45.0,153.76,153.71,15.055]
[1724470364822,45.12549,153.77,153.71,15.055]
[1724470365024,45.12549,153.77,153.72,1.30094662]
[1724470365226,45.0,153.76,153.72,1.30094662]
[1724470365397,0.12549,153.77,153.72,1.30094662]
[1724470365597,0.25098,153.77,153.72,1.30094662]
[1724470366308,0.25098,153.77,153.72,26.99078023]
[1724470366699,0.12549,153.77,153.72,26.99078023]
[1724470367708,45.4,153.78,153.72,26.99078023]
[1724470369821,45.4,153.78,153.72,1.30094662]
[1724470370016,45.4,153.78,153.72,26.99078023]
[1724470370595,0.4,153.78,153.72,25.68983361]
[1724470373203,0.4,153.78,153.73,7.88401442]
[1724470373806,16.2432,153.92,153.76,25.68983361]
[1724470374009,26.8924723,153.93,153.76,15.055]
[1724470374010,6.4992,153.87,153.76,15.055]
[1724470374212,6.4992,153.87,153.79,25.68983361]
[1724470374423,6.4992,153.87,153.77,26.99010299]
[1724470375117,6.4992,153.87,153.77,25.68983361]
[1724470375500,6.5002,153.85,153.76,15.055]
[1724470375707,51.75118,153.84,153.76,15.055]
[1724470376123,6.5006,153.83,153.76,15.055]
[1724470376313,45.25098,153.82,153.76,15.055]
[1724470377611,20.0,153.83,153.77,1.30038601]
[1724470377806,6.4998,153.86,153.77,1.30038601]
[1724470377807,26.4998,153.85,153.77,1.30038601]
[1724470378114,25.9998,153.85,153.77,1.30038601]
[1724470378495,19.5,153.85,153.77,1.30038601]
[1724470379018,6.4993,153.87,153.77,1.30038601]
[1724470379712,45.0,153.86,153.76,40.74483361]
[1724470380021,0.25098,153.85,153.76,40.74483361]
[1724470380228,20.25098,153.85,153.76,40.74483361]
[1724470380420,45.0,153.84,153.76,40.74483361]
[1724470382720,45.0,153.84,153.77,1.30026025]
[1724470383832,25.68983361,153.91,153.79,22.1338]
[1724470384505,6.4982,153.89,153.8,25.68983361]
[1724470384706,26.51188591,153.93,153.8,25.68983361]
[1724470384920,6.4977,153.9,153.8,25.68983361]
[1724470385327,6.4973,153.91,153.81,22.1338]
[1724470385731,26.51188591,153.93,153.81,22.1338]
[1724470386614,0.25098,153.92,153.82,1.29986391]
[1724470386814,45.25098,153.92,153.82,1.29986391]
[1724470387340,26.4973,153.91,153.83,1.29986281]
[1724470387524,45.25098,153.9,153.83,1.29986281]
[1724470387715,7.3187523,153.93,153.85,15.6264]
[1724470387911,20.0,153.92,153.86,6.2018]
[1724470388106,26.497,153.92,153.86,6.2018]
[1724470389233,45.0,153.91,153.86,6.2018]
[1724470391813,51.4974,153.91,153.86,6.2018]
[1724470392020,0.25098,153.9,153.86,6.2018]
[1724470393528,0.12549,153.9,153.86,6.2018]
[1724470393838,45.0,153.91,153.86,6.2018]
[1724470394402,45.0,153.91,153.86,7.50156049]
[1724470395205,45.0,153.91,153.86,6.2018]
[1724470396725,45.0,153.91,153.86,7.5015226]
[1724470397533,45.0,153.91,153.86,6.2018]
[1724470398106,6.4982,153.89,153.86,6.2018]
[1724470398307,45.0,153.88,153.85,15.6264]
[1724470399828,45.0,153.89,153.85,15.6264]
[1724470400030,0.12549,153.88,153.85,15.6264]
[1724470400230,45.0,153.89,153.85,15.6264]
[1724470408017,20.0,153.92,153.86,1.29974037]
[1724470408219,45.12549,153.91,153.85,15.6264]
[1724470408522,45.12549,153.91,153.86,6.2929]
[1724470408938,45.12549,153.91,153.86,7.59263008]
[1724470412832,45.12549,153.91,153.86,6.2929]
[1724470413957,45.12549,153.91,153.86,7.59263506]
[1724470416163,7.61835884,153.93,153.87,15.6054]
[1724470416466,7.61835884,153.93,153.88,7.59227317]
[1724470416467,0.8220523,153.93,153.88,7.59227317]
[1724470417933,0.8220523,153.93,153.88,6.2929]
[1724470418668,45.8220523,153.93,153.88,6.2929]
[1724470419570,25.68983361,153.92,153.88,6.2929]
[1724470420448,32.18673361,153.92,153.88,6.2929]
[1724470420651,25.68983361,153.9,153.88,6.2929]
[1724470420965,25.68983361,153.9,153.87,15.6054]
[1724470421973,45.0,153.89,153.87,15.6054]
[1724470427670,25.68983361,153.88,153.84,6.0484]
[1724470427983,32.18833361,153.88,153.84,6.0484]
[1724470428178,45.0,153.87,153.84,6.0484]
[1724470428376,25.68983361,153.86,153.83,15.4657]
[1724470430467,25.68983361,153.86,153.81,6.6474]
[1724470431767,32.18933361,153.86,153.79,15.4657]
[1724470431968,45.25098,153.85,153.79,15.4657]
[1724470432985,25.68983361,153.84,153.79,15.4657]
[1724470433597,32.19003361,153.84,153.79,15.4657]
[1724470433804,45.12549,153.83,153.79,15.4657]
[1724470437988,51.62619,153.83,153.79,15.4657]
[1724470438287,51.62619,153.83,153.75,15.5076]
[1724470438600,6.62659,153.82,153.75,15.5076]
[1724470438787,45.12549,153.81,153.75,15.5076]
[1724470438992,51.62699,153.81,153.75,15.5076]
[1724470439867,6.5019,153.8,153.75,15.5076]
[1724470440162,45.0,153.79,153.75,15.5076]
[1724470440591,45.0,153.8,153.75,15.5076]
[1724470441997,6.5024,153.79,153.75,15.5076]
[1724470442198,45.0,153.8,153.75,15.5076]
[1724470442392,0.12549,153.79,153.75,15.5076]
[1724470442688,0.12549,153.8,153.75,15.5076]
[1724470445082,45.12549,153.81,153.75,15.5076]
[1724470448912,45.0,153.81,153.75,16.80818589]
[1724470449218,6.5007,153.83,153.75,16.80818589]
[1724470449389,20.0,153.82,153.75,16.80818589]
[1724470450116,20.0,153.83,153.75,15.5076]
[1724470451313,45.0,153.82,153.76,1.30047719]
[1724470452714,45.0,153.82,153.75,15.5076]
[1724470458021,6.5015,153.81,153.75,15.5076]
[1724470458327,45.0,153.8,153.75,15.5076]
[1724470458793,45.12549,153.81,153.75,15.5076]
[1724470466723,26.5007,153.83,153.76,1.30066353]
[1724470466926,45.12549,153.82,153.76,1.30066353]
[1724470471936,45.12549,153.82,153.75,15.5076]
[1724470472613,45.0,153.82,153.75,15.5076]
[1724470473717,0.12549,153.81,153.75,15.5076]
[1724470476427,6.62709,153.81,153.75,15.5076]
[1724470476730,45.0,153.8,153.75,15.5076]
[1724470479641,6.5024,153.79,153.75,15.5076]
[1724470480133,51.502,153.8,153.75,15.5076]
[1724470482121,6.62779,153.79,153.75,15.5076]
[1724470482352,45.0,153.78,153.75,15.5076]
[1724470483036,6.5033,153.77,153.71,16.4379]
[1724470483237,45.0,153.76,153.71,16.4379]
[1724470485525,45.12549,153.77,153.71,16.4379]
[1724470486923,45.0,153.77,153.71,17.73883787]
[1724470487733,6.62789,153.79,153.71,17.73883787]
[1724470487942,45.0,153.78,153.71,17.73883787]
[1724470488544,6.62789,153.79,153.72,32.23883361]
[1724470488545,0.12549,153.79,153.72,32.23883361]
[1724470488855,20.12549,153.8,153.74,16.4379]
[1724470489352,0.12549,153.8,153.74,16.4379]
[1724470489733,45.12549,153.8,153.74,16.4379]
[1724470494749,51.62749,153.8,153.74,16.4379]
[1724470495135,45.12549,153.8,153.74,16.4379]
[1724470496373,51.62739,153.8,153.74,16.4379]
[1724470496661,45.12549,153.8,153.74,16.4379]
[1724470496868,51.62739,153.8,153.74,16.4379]
[1724470497049,45.12549,153.8,153.74,16.4379]
[1724470497556,0.12549,153.79,153.74,16.4379]
[1724470497866,6.62789,153.79,153.74,16.4379]
[1724470498042,45.12549,153.78,153.74,16.4379]
[1724470499251,51.80148419,153.77,153.74,16.4379]
[1724470499438,6.80148419,153.77,153.74,16.4379]
[1724470499875,45.0,153.76,153.74,16.4379]
[1724470501252,45.0,153.76,153.72,6.549]
[1724470501851,0.12549,153.75,153.7,16.462]
[1724470502567,0.25098,153.75,153.7,16.462]
[1724470503554,6.75518,153.75,153.7,16.462]
[1724470503876,45.0,153.74,153.7,16.462]
[1724470511057,6.80148419,153.77,153.7,16.462]
[1724470511058,6.5037,153.76,153.7,16.462]
[1724470511478,6.80148419,153.77,153.7,16.462]
[1724470511856,6.80148419,153.77,153.71,7.67331376]
[1724470512059,15.9003,153.84,153.73,25.68983361]
[1724470512265,6.80060169,153.82,153.73,26.9906023]
[1724470513183,26.5016,153.81,153.73,26.9906023]
[1724470513357,26.5016,153.81,153.73,26.99059592]
[1724470513883,26.5016,153.81,153.74,1.30077031]
[1724470514187,26.5016,153.81,153.73,25.68983361]
[1724470514188,26.5016,153.81,153.73,26.99060244]
[1724470514566,0.12549,153.8,153.73,26.99060244]
[1724470514792,45.25098,153.8,153.73,26.99060244]
[1724470515860,45.25098,153.8,153.73,26.99059908]
[1724470516180,45.25098,153.8,153.74,1.30076547]
[1724470516181,45.12549,153.8,153.74,1.30076547]
[1724470516590,45.0,153.8,153.74,1.30076547]
[1724470519764,295.19013361,153.88,153.77,15.9974]
[1724470520000,295.19013361,153.88,153.77,17.29789578]
[1724470520200,6.79959828,153.87,153.77,17.29789578]
[1724470521092,65.25098,153.86,153.77,17.29789578]
[1724470521283,6.5002,153.84,153.77,15.9974]
[1724470521481,45.25098,153.83,153.77,15.9974]
[1724470521671,45.25098,153.83,153.77,17.2979209]
[1724470521672,45.0,153.83,153.77,17.2979209]
[1724470522764,45.0,153.84,153.77,42.98775451]
[1724470522968,26.62489,153.86,153.77,42.98775451]
[1724470522969,45.0,153.85,153.77,42.98775451]
[1724470523202,26.4994,153.86,153.77,42.98775451]
[1724470524695,45.12549,153.85,153.77,42.98775451]
[1724470525781,20.0,153.86,153.77,41.68723361]
[1724470530668,45.0,153.85,153.77,41.68723361]
[1724470530981,51.4998,153.85,153.77,15.9974]
[1724470531303,58.29847062,153.85,153.77,15.9974]
[1724470533599,0.12549,153.84,153.77,15.9974]
[1724470533899,0.25098,153.84,153.77,15.9974]
[1724470534084,6.75118,153.84,153.77,15.9974]
[1724470534402,45.0,153.83,153.77,15.9974]
[1724470542184,6.79867062,153.85,153.78,1.30047064]
[1724470543403,13.29847062,153.85,153.78,1.30047064]
[1724470544180,13.29847062,153.85,153.77,41.68723361]
[1724470544403,6.4998,153.85,153.77,41.68723361]
[1724470544999,45.0,153.84,153.77,15.9974]
[1724470548401,45.0,153.84,153.78,1.30040906]
[1724470548607,45.0,153.85,153.78,1.30040906]
[1724470548919,45.0,153.85,153.79,21.8318]
[1724470549307,45.0,153.85,153.8,1.30026513]
[1724470549491,45.0,153.85,153.8,1.30025956]